[Event "6th Tulsi Lal Memorial NTCC 2080"]
[Site "Lalitpur"]
[Date "2024.01.09"]
[Round "2.2"]
[White "Maharjan, Suroj"]
[Black "Ghimire, Sabin Chandra"]
[Result "1-0"]
[ECO "D11"]
[WhiteElo "1832"]
[BlackElo "1869"]
[Annotator "NA RC COMBH"]
[PlyCount "178"]
[EventDate "2024.01.03"]
[EventType "team-tourn"]
[EventCountry "NEP"]
[SourceTitle "playchess.com"]
[Source "ChessBase"]
[SourceQuality "1"]
[TimeControl "5400+30"]

1. c4 {[%emt 0:02:13]} Nf6 {[%emt 0:08:41]} 2. Nf3 {[%emt 0:01:27]} c6 {[%emt 0:00:23]} 3. g3 {[%emt 0:02:01]} d5 {[%emt 0:00:12]} 4. Bg2 {[%emt 0:00:24]} Bf5 {[%emt 0:01:45]} 5. O-O {[%emt 0:01:30]} e6 {[%emt 0:00:14]} 6. d4 {[%emt 0:01:59]} h6 {[%emt 0:01:33]} 7. Nc3 {[%emt 0:01:01]} Be7 {[%emt 0:00:11]} 8. Qb3 {[%emt 0:02:55]} Qb6 {[%emt 0:00:56]} 9. Qd1 {[%emt 0:02:19]} Nbd7 {[%emt 0:01:44]} 10. h3 {[%emt 0:04:43]} O-O {[%emt 0:02:05]} 11. c5 {[%emt 0:04:32]} Qa6 {[%emt 0:03:56]} 12. g4 {[%emt 0:04:53]} Bh7 {[%emt 0:02:02]} 13. g5 {[%emt 0:00:45]} hxg5 {[%emt 0:00:51]} 14. Bxg5 {[%emt 0:00:19]} Rfe8 {[%emt 0:03:30]} 15. b4 {[%emt 0:01:40]} Ne4 {[%emt 0:07:23]} 16. Bd2 {[%emt 0:02:35]} b6 {[%emt 0:05:00]} 17. Nxe4 {[%emt 0:03:23]} Bxe4 {[%emt 0:00:33]} 18. Bf4 bxc5 {[%emt 0:02:39]} 19. bxc5 {[%emt 0:02:53]} Bf6 {[%emt 0:02:05]} 20. e3 {[%emt 0:03:27]} e5 {[%emt 0:18:08]} 21. Bg3 {[%emt 0:00:30]} Rab8 {[%emt 0:00:30]} 22. Nxe5 {[%emt 0:04:27]} Bxe5 23. Bxe4 Bxg3 {[%emt 0:19:38]} 24. Bd3 {[%emt 0:10:57]} Qa3 {[%emt 0:02:27]} 25. fxg3 {[%emt 0:03:07]} Rxe3 {[%emt 0:03:08]} 26. Rf3 {[%emt 0:03:28]} Rxf3 {[%emt 0:04:43]} 27. Qxf3 {[%emt 0:00:38]} Qb2 $1 {[%emt 0:00:37]} 28. Rd1 {[%emt 0:12:04]} Qxd4+ {[%emt 0:00:36]} 29. Kh1 {[%emt 0:00:19]} Qxc5 {[%emt 0:05:48]} ({Don't blunder} 29... Ne5 $2 30. Bh7+ {[%mdl 64] Discovered Attack} Kf8 31. Rxd4 $19) 30. Qf5 {[%emt 0:04:36]} Nf8 {[%emt 0:03:10]} 31. Qe5 {[%emt 0:04:05]} Rb7 {[%emt 0:02:02]} 32. Re1 {[%emt 0:00:37]} Qf2 {[%emt 0:01:43]} 33. Rf1 {[%emt 0:00:32]} Qxa2 {[%emt 0:01:33]} 34. Qe8 {[%emt 0:01:25]} Qd2 {[%emt 0:01:36]} 35. Bg6 {[%emt 0:01:26]} f6 {[%emt 0:02:15]} 36. Re1 {[%emt 0:01:04]} Qb4 {[%emt 0:03:10]} (36... Rb8 $142 37. Bf7+ Kh7 38. Qxb8 Qxe1+ 39. Kg2 Ng6) 37. h4 {[%emt 0:04:12]} Qd6 {[%emt 0:01:34]} 38. Bf5 {[%emt 0:05:21]} g6 {[%emt 0:03:54]} 39. Bxg6 {[%emt 0:01:10]} Qd7 {[%emt 0:01:43]} 40. h5 {[%emt 0:06:30]} Qh3+ {[%emt 0:02:47]} 41. Kg1 {[%emt 0:00:02]} Qxg3+ {[%emt 0:00:04]} 42. Kh1 {[%emt 0:00:10]} Qh4+ {[%emt 0:00:17]} 43. Kg1 {[%emt 0:00:09]} Qg5+ {[%emt 0:00:06]} 44. Kh1 {[%emt 0:00:03]} Qh4+ $2 {[%emt 0:00:14]} (44... a5 $19 45. Re2 f5 46. Bf7+ Kh7 47. Bg6+ Nxg6 48. hxg6+ Kg7 49. Qe5+ Qf6 50. Qxf6+ Kxf6) 45. Kg1 {[%emt 0:00:03]} Qg3+ {[%emt 0:00:17]} 46. Kh1 {[%emt 0:00:03]} Qh3+ {[%emt 0:00:56]} 47. Kg1 {[%emt 0:00:03]} Qd7 {[%emt 0:01:26]} 48. Qxd7 {[%emt 0:04:46]} Rxd7 {[%emt 0:00:37]} 49. Re8 {[%emt 0:00:08]} Kg7 {[%emt 0:00:44]} 50. Bf5 {[%emt 0:00:03]} Rd6 {[%emt 0:00:20]} 51. Ra8 {[%emt 0:00:35]} c5 {[%emt 0:00:14]} 52. h6+ {[%emt 0:00:11]} Kxh6 {[%emt 0:00:02]} 53. Rxf8 {[%emt 0:00:04]} c4 {[%emt 0:00:08]} 54. Rg8 {[%emt 0:00:45]} d4 {[%emt 0:00:21]} 55. Kf2 {[%emt 0:00:01]} d3 {[%emt 0:00:20]} 56. Rg6+ {[%emt 0:01:36]} Kh5 {[%emt 0:00:11]} 57. Rg1 {[%emt 0:00:08]} c3 {[%emt 0:00:13]} 58. Ke3 {[%emt 0:00:30]} d2 {[%emt 0:00:35]} 59. Bc2 {[%emt 0:00:19]} Re6+ {[%emt 0:01:10]} 60. Kf2 {[%emt 0:00:52]} a5 {[%emt 0:00:19]} 61. Rg3 {[%emt 0:01:06]} Re1 {[%emt 0:01:33]} 62. Rxc3 {[%emt 0:00:25]} Rc1 {[%emt 0:00:14]} 63. Rh3+ {[%emt 0:00:14]} Kg4 {[%emt 0:00:17]} 64. Rg3+ {[%emt 0:00:04]} Kh4 {[%emt 0:00:03]} 65. Ra3 {[%emt 0:01:30]} Rxc2 {[%emt 0:00:24]} 66. Ke2 {[%emt 0:00:06]} Rc5 {[%emt 0:00:44]} 67. Kxd2 {[%emt 0:00:07]} f5 {[%emt 0:01:06]} 68. Ke3 {[%emt 0:00:58]} Kg4 {[%emt 0:00:55]} 69. Ra4+ {[%emt 0:00:45]} Kg3 {[%emt 0:00:18]} 70. Ra3 {[%emt 0:00:02]} Rb5 {[%emt 0:00:19]} 71. Kd4+ {[%emt 0:00:50]} Kg4 {[%emt 0:00:16]} 72. Kc4 {[%emt 0:00:08]} Re5 {[%emt 0:00:18]} 73. Kd4 {[%emt 0:00:44]} Re4+ {[%emt 0:00:08]} 74. Kd3 {[%emt 0:00:03]} a4 {[%emt 0:00:03]} 75. Ra1 {[%emt 0:00:04]} Rb4 {[%emt 0:00:14]} 76. Kc3 {[%emt 0:00:55]} Rf4 {[%emt 0:00:22]} 77. Rg1+ {[%emt 0:00:28]} Kf3 {[%emt 0:00:03]} 78. Rf1+ {[%emt 0:00:05]} Ke3 {[%emt 0:05:32]} 79. Ra1 {[%emt 0:00:13]} Re4 {[%emt 0:00:00]} 80. Re1+ {[%emt 0:00:17]} Kf2 {[%emt 0:00:00]} 81. Ra1 {[%emt 0:00:27]} f4 {[%emt 0:00:00]} 82. Kd3 {[%emt 0:00:05]} Re3+ {[%emt 0:00:00]} 83. Kd4 {[%emt 0:00:19]} a3 {[%emt 0:00:00]} 84. Rh1 {[%emt 0:00:15]} Re8 {[%emt 0:00:00]} 85. Rh2+ {[%emt 0:00:15]} Kg3 {[%emt 0:00:00]} 86. Ra2 {[%emt 0:00:02]} Ra8 {[%emt 0:00:00]} 87. Kd3 {[%emt 0:00:12]} f3 {[%emt 0:00:00]} 88. Kd2 {[%emt 0:00:10]} f2 {[%emt 0:00:00]} 89. Ra1 {[%emt 0:00:10]} Kg2 {[%emt 0:00:00]} 1-0

[Event "6th Tulsi Lal Memorial NTCC 2080"]
[Site "Lalitpur"]
[Date "2024.01.09"]
[Round "2.3"]
[White "Dahal, Mission"]
[Black "Thapa, Rishon"]
[Result "0-1"]
[ECO "D37"]
[WhiteElo "1704"]
[BlackElo "1738"]
[Annotator "NA RC COMBH"]
[PlyCount "94"]
[EventDate "2024.01.03"]
[EventType "team-tourn"]
[EventCountry "NEP"]
[SourceTitle "playchess.com"]
[Source "ChessBase"]
[SourceQuality "1"]
[TimeControl "5400+30"]

1. d4 {[%emt 0:08:47]} Nf6 {[%emt 0:00:23]} 2. c4 {[%emt 0:00:37]} e6 {[%emt 0:01:00]} 3. Nf3 {[%emt 0:00:33]} d5 {[%emt 0:00:47]} 4. Nc3 {[%emt 0:00:26]} Be7 {[%emt 0:00:33]} 5. Bf4 {[%emt 0:00:54]} O-O {[%emt 0:00:11]} 6. e3 {[%emt 0:00:27]} c5 {[%emt 0:06:27]} 7. dxc5 {[%emt 0:06:06]} dxc4 {[%emt 0:03:57]} 8. Bxc4 {[%emt 0:01:48]} Bxc5 {[%emt 0:05:26]} 9. O-O {[%emt 0:01:13]} a6 {[%emt 0:11:05]} 10. a4 {[%emt 0:06:03]} Qa5 {[%emt 0:11:15]} 11. Qb3 {[%emt 0:09:38]} Nc6 {[%emt 0:06:25]} 12. Rfd1 {[%emt 0:07:24]} Bb4 {[%emt 0:08:30]} 13. Bd6 {[%emt 0:00:30]} Bxd6 {[%emt 0:00:30]} 14. Rxd6 {[%emt 0:00:30]} Qc5 15. Rxc6 {[%emt 0:22:16]} Qxc6 {[%emt 0:03:12]} 16. Rd1 {[%emt 0:00:25]} b6 {[%emt 0:02:07]} 17. Bf1 {[%emt 0:04:04]} Qc7 {[%emt 0:01:13]} 18. Ne2 {[%emt 0:00:25]} Bb7 {[%emt 0:11:59]} 19. Rc1 {[%emt 0:02:26]} Bd5 {[%emt 0:00:49]} 20. Qb4 {[%emt 0:01:07]} Qb7 {[%emt 0:00:48]} 21. Nfd4 {[%emt 0:02:24]} Rfc8 {[%emt 0:03:45]} 22. Rd1 {[%emt 0:02:15]} Rc7 {[%emt 0:02:23]} 23. h3 {[%emt 0:02:12]} h6 {[%emt 0:00:19]} 24. Qa3 {[%emt 0:00:45]} Rac8 {[%emt 0:01:16]} 25. f3 {[%emt 0:00:41]} Bc4 {[%emt 0:01:23]} 26. Nc3 {[%emt 0:00:25]} Bxf1 {[%emt 0:00:42]} 27. Rxf1 {[%emt 0:00:24]} Nd5 {[%emt 0:00:25]} 28. Nce2 {[%emt 0:00:26]} Rc4 {[%emt 0:02:17]} 29. Kf2 {[%emt 0:04:37]} Qe7 {[%emt 0:02:59]} 30. Qd3 {[%emt 0:03:20]} Rxa4 {[%emt 0:02:40]} 31. e4 {[%emt 0:04:59]} Nb4 {[%emt 0:01:09]} 32. Qb3 {[%emt 0:01:13]} Ra5 {[%emt 0:00:36]} 33. Kg1 {[%emt 0:00:28]} b5 {[%emt 0:03:40]} 34. Kh1 {[%emt 0:00:55]} Rc4 {[%emt 0:00:31]} 35. Qd1 {[%emt 0:00:47]} Ra2 {[%emt 0:00:57]} 36. b3 {[%emt 0:00:28]} Rc7 {[%emt 0:00:08]} 37. Qb1 {[%emt 0:01:49]} Rd2 {[%emt 0:00:27]} 38. Qe1 {[%emt 0:00:23]} Rd3 {[%emt 0:00:33]} 39. Qb1 {[%emt 0:01:38]} Rd7 {[%emt 0:00:53]} 40. Qa1 {[%emt 0:02:56]} Qd8 {[%emt 0:00:50]} 41. Nxe6 {[%emt 0:00:44]} fxe6 {[%emt 0:00:09]} 42. Qe5 {[%emt 0:00:41]} Qf6 {[%emt 0:00:31]} 43. Qc5 {[%emt 0:00:14]} Rd1 {[%emt 0:00:34]} 44. Rxd1 {[%emt 0:00:52]} Rd6 {[%emt 0:06:46]} 45. Rd2 Rxd2 46. Kh2 Rd1 {[%emt 0:00:00]} 47. Qb6 {[%emt 0:01:10]} Qf8 {[%emt 0:00:00]} 0-1

[Event "6th Tulsi Lal Memorial NTCC 2080"]
[Site "Lalitpur"]
[Date "2024.01.09"]
[Round "2.4"]
[White "Demanraura, Ayush"]
[Black "Adhikari, Kritisara"]
[Result "1-0"]
[ECO "E61"]
[WhiteElo "1410"]
[BlackElo "1527"]
[Annotator "NA RC COMBH"]
[PlyCount "69"]
[EventDate "2024.01.03"]
[EventType "team-tourn"]
[EventCountry "NEP"]
[SourceTitle "playchess.com"]
[Source "ChessBase"]
[SourceQuality "1"]
[TimeControl "5400+30"]

1. c4 {[%emt 1:31:00]} d6 {[%emt 0:04:13]} 2. Nc3 {[%emt 0:00:00]} Nf6 {[%emt 0:00:25]} 3. d4 {[%emt 0:00:00]} g6 {[%emt 0:00:10]} 4. Nf3 {[%emt 0:00:00]} Bg7 {[%emt 0:00:29]} 5. Bf4 {[%emt 0:00:00]} O-O {[%emt 0:00:44]} 6. e3 {[%emt 0:00:00]} Nbd7 {[%emt 0:02:07]} 7. Bd3 {[%emt 0:00:00]} Re8 {[%emt 0:02:46]} 8. Qc2 {[%emt 0:00:00]} e5 {[%emt 0:04:41]} 9. Bg5 {[%emt 0:00:00]} c6 {[%emt 0:10:40]} 10. O-O {[%emt 0:00:00]} Qc7 {[%emt 0:04:21]} 11. Rfe1 {[%emt 0:00:00]} Nf8 {[%emt 0:26:23]} 12. h3 {[%emt 0:00:00]} N6d7 13. d5 f5 {[%emt 0:05:11]} 14. e4 {[%emt 0:00:00]} f4 {[%emt 0:01:41]} 15. Qe2 {[%emt 0:00:00]} h6 {[%emt 0:01:13]} 16. Bh4 {[%emt 0:00:00]} g5 {[%emt 0:09:10]} 17. Bxg5 {[%emt 0:00:00]} hxg5 {[%emt 0:00:09]} 18. Nxg5 {[%emt 0:00:00]} Nf6 {[%emt 0:01:48]} 19. Rad1 {[%emt 0:00:00]} c5 {[%emt 0:01:55]} 20. Bc2 {[%emt 0:00:48]} Bh6 {[%emt 0:04:09]} 21. Nf3 {[%emt 0:02:04]} Qg7 {[%emt 0:02:56]} 22. Kh2 {[%emt 0:00:30]} Ng6 {[%emt 0:05:10]} 23. Rg1 {[%emt 0:02:51]} Kh8 {[%emt 0:03:21]} 24. g3 {[%emt 0:01:41]} fxg3+ {[%emt 0:01:45]} 25. fxg3 {[%emt 0:00:19]} Qd7 {[%emt 0:01:33]} 26. Qg2 {[%emt 0:01:05]} Rg8 {[%emt 0:01:15]} 27. Ba4 {[%emt 0:01:45]} Qh7 {[%emt 0:01:05]} 28. Qe2 {[%emt 0:00:51]} Be3 {[%emt 0:02:14]} 29. h4 {[%emt 0:01:29]} Bxg1+ {[%emt 0:00:07]} 30. Rxg1 {[%emt 0:00:03]} Qh5 {[%emt 0:01:53]} 31. Bd1 {[%emt 0:00:59]} Bg4 {[%emt 0:00:33]} 32. Qe3 {[%emt 0:00:33]} Bxf3 {[%emt 0:01:16]} 33. Bxf3 {[%emt 0:00:01]} Ng4+ {[%emt 0:00:18]} 34. Bxg4 {[%emt 0:00:03]} Qxg4 {[%emt 0:00:01]} 35. Qh6# {[%emt 0:00:03]} 1-0

[Event "6th Tulsi Lal Memorial NTCC 2080"]
[Site "Lalitpur"]
[Date "2024.01.09"]
[Round "2.5"]
[White "Lama, Milan"]
[Black "Shrestha, Janardan"]
[Result "1-0"]
[ECO "C68"]
[WhiteElo "2010"]
[BlackElo "1852"]
[Annotator "TA"]
[PlyCount "133"]
[EventDate "2024.01.03"]
[EventType "team-tourn"]
[EventCountry "NEP"]
[SourceTitle "playchess.com"]
[Source "ChessBase"]
[SourceQuality "1"]
[TimeControl "5400+30"]

{[%evp 12,133,0,0,0,0,108,108,120,106,110,104,95,100,114,100,95,96,106,69,90,58,62,68,60,37,70,38,72,38,44,37,38,35,31,31,31,39,40,-40,-25,-39,0,-56,127,45,85,94,87,96,162,160,162,146,167,163,168,176,175,141,231,204,205,142,160,96,168,162,168,126,141,136,148,126,143,133,142,36,35,29,47,-29,-40,-34,-8,-54,0,0,0,-129,-54,-53,0,-87,0,0,0,0,0,0,0,0,403,358,1403,1267,1337,1300,1249,1184,1108,1076,1000,891,29982,29983,29984,29985,29985,29986,29988,29989,29989,29990]} 1. e4 {[%emt 1:31:00]} e5 2. Nf3 {[%emt 0:00:00]} Nc6 {[%emt 0:07:35]} 3. Bb5 {[%emt 0:00:00]} a6 {[%emt 0:00:18]} 4. Bxc6 {[%emt 0:00:00]} dxc6 {[%emt 0:00:24]} 5. O-O {[%emt 0:00:00]} Bg4 {[%emt 0:01:31]} 6. h3 {[%emt 0:00:00]} Bh5 {[%emt 0:00:32]} 7. g4 {[%emt 0:00:00]} Bg6 {[%emt 0:01:03] C68: Ruy Lopez: Exchange Variation, sidelines.} 8. Nxe5 {[%emt 0:00:00]} Qf6 {[%emt 0:03:53] 8...Bd6 gains popularity.} (8... Qh4 $11) 9. f4 $1 $16 {[%emt 0:00:00]} O-O-O {[%emt 0:01:01] White is better.} 10. Qe2 {[%emt 0:00:00] [#]} Bc5+ $146 {[%emt 0:01:03]} ({Predecessor:} 10... Qh4 11. Kg2 Qe7 12. d3 f6 13. Nf3 h5 14. Be3 hxg4 15. hxg4 Qd7 16. f5 Bd6 {0-1 Al Hajiri,B (2112)-Hashem,K (1909) KUW-ch Kuwait 2015 (3)}) 11. Kg2 {[%emt 0:00:00] Strongly threatening c3.} Qe7 {[%emt 0:04:51]} 12. d3 {[%emt 0:00:00]} f6 {[%emt 0:01:40]} 13. Nxg6 {[%emt 0:00:00]} hxg6 {[%emt 0:00:02]} 14. Be3 {[%emt 0:00:00]} Nh6 {[%emt 0:05:40]} 15. Nc3 {[%emt 0:00:00][%cal Oe4e5]} Nf7 {[%emt 0:05:55]} 16. Bxc5 {[%emt 0:00:00]} Qxc5 {[%emt 0:00:12]} 17. Qf2 {[%emt 0:00:00]} Qb4 {[%emt 0:02:52]} 18. Rfb1 {[%emt 0:00:00]} Kb8 {[%emt 0:00:30]} 19. a3 {[%emt 0:00:00]} Qd6 {[%emt 0:00:30]} 20. Ne2 g5 21. Rh1 {[%emt 0:00:00]} gxf4 {[%emt 0:08:39]} 22. Qxf4 {[%emt 0:00:00]} Qc5 {[%emt 0:00:51]} 23. Rac1 {[%emt 0:00:00]} Ne5 {[%emt 0:02:13]} 24. b4 {[%emt 0:00:00]} Qe7 {[%emt 0:00:56]} 25. Qf5 {[%emt 0:00:00]} (25. Qe3 $14) 25... c5 {[%emt 0:02:56]} 26. Rb1 {[%emt 0:00:13]} cxb4 {[%emt 0:02:32]} (26... c4 $5 {[%cal Rc4d3]} 27. d4 Nf7 $11) 27. axb4 {[%emt 0:01:15]} (27. Rxb4 $11 a5 28. Rb5) 27... Rh4 $2 {[%emt 0:04:26]} (27... g6 $15 {stays ahead.} 28. Qf2 f5) 28. Nf4 {[%emt 0:02:27]} (28. b5 $16) 28... Rh6 {[%emt 0:03:41]} 29. Qe6 $36 {[%emt 0:01:18][%mdl 2048] White is in control.} Qf8 {[%emt 0:01:30]} 30. Qb3 {[%emt 0:02:52] Ne6 is the strong threat. White is more active.} Qd6 {[%emt 0:04:37] [#]} (30... Ng6 $16 {was called for.} 31. Rhf1 Nxf4+ 32. Rxf4 Qd6) 31. Qd5 $1 $18 {[%emt 0:03:22]} Qf8 {[%emt 0:02:21]} 32. Qc5 {[%emt 0:00:49]} Qf7 {[%emt 0:02:40] Repels Ne6} 33. b5 {[%emt 0:01:10]} b6 {[%emt 0:06:56]} 34. bxa6 {[%emt 0:00:58][%cal Ob1b6] Threatens to win with Rxb6+!} Ka7 {[%emt 0:00:02]} 35. Qc3 {[%emt 0:00:38][%cal Of4e6] Ne6! would be deadly.} Qd7 {[%emt 0:00:34] Wards off Ne6} (35... Rd6 $16 36. Qb3 Qxb3 37. Rxb3 Nc6) 36. Nd5 {[%emt 0:01:15]} Rc8 {[%emt 0:00:41]} 37. Ne3 {[%emt 0:00:29]} Ng6 {[%emt 0:01:39]} 38. Nf5 {[%emt 0:00:41]} ({Better is} 38. Qc4) 38... Nh4+ {[%emt 0:00:52]} (38... Nf4+ $16 39. Kf3 Rxh3+ 40. Rxh3 (40. Kxf4 $2 g5#) 40... Nxh3) 39. Nxh4 {[%emt 0:00:29]} Rxh4 {[%emt 0:00:05]} 40. Qd2 {[%emt 0:00:35]} Rch8 {[%emt 0:00:47]} 41. Qe2 {[%emt 0:00:28]} Qc6 {[%emt 0:01:02]} 42. c4 {[%emt 0:00:35]} Rd8 {[%emt 0:04:18]} 43. Qf3 {[%emt 0:00:38]} Rhh8 {[%emt 0:00:18] [#]} 44. c5 {[%emt 0:00:37]} Qxc5 $14 {[%emt 0:04:24] aiming for ...Qc2+.} 45. Rhc1 {[%emt 0:00:25] Inhibits Qc2+.} Qe5 {[%emt 0:00:10]} 46. Rb3 {[%emt 0:00:38]} ({White should play} 46. Rc6 $14) 46... c5 $11 {[%emt 0:01:02]} 47. Rcb1 {[%emt 0:00:31] White is weak on the dark squares} Rd6 {[%emt 0:00:34]} 48. Qg3 {[%emt 0:00:25]} (48. d4 $11 cxd4 49. Rb5) 48... Rhd8 {[%emt 0:00:23]} ({Black should try} 48... Qe7 $15) 49. Qxe5 $1 {[%emt 0:01:12]} fxe5 {[%emt 0:00:05][%mdl 4096] Endgame KRR-KRR} 50. Rf1 {[%emt 0:00:00]} (50. h4 $11) 50... Kxa6 {[%emt 0:01:53]} (50... Rxd3 $17 51. Rxd3 Rxd3 52. Rf7+ Kxa6 53. Rxg7 c4) 51. Ra3+ $15 {[%emt 0:00:26]} Kb7 {[%emt 0:00:12]} (51... Kb5 $15 52. Rb1+ Kc6) 52. Rf7+ {[%emt 0:00:24]} (52. h4 $1 $11) 52... Kc6 {[%emt 0:00:36]} (52... R8d7 $17 53. Rxd7+ Rxd7) 53. Rxg7 $11 {[%emt 0:00:36][%cal Bf7g7,Bg7g8,Bg8c8][%mdl 32] Black must now prevent g5.} Rxd3 {[%emt 0:00:15]} 54. Rxd3 {[%emt 0:00:33]} Rxd3 {[%emt 0:00:03] KR-KR} 55. Rg8 {[%emt 0:00:27]} Rd6 {[%emt 0:03:09]} 56. h4 {[%emt 0:00:19][%cal Bh3h4,Bh4h5,Bh5h6,Bh6h7][%mdl 32]} c4 $2 {[%emt 0:00:13][%mdl 8192]} (56... Kd7 $11 {and Black has nothing to worry.}) 57. Rc8+ $18 {[%emt 0:00:34]} Kb5 $2 {[%emt 0:00:03]} (57... Kd7 58. Rxc4 Rd2+ 59. Kg3 Rd3+ 60. Kf2 b5) 58. h5 {[%emt 0:00:16]} Rh6 {[%emt 0:04:53]} 59. Kg3 {[%emt 0:00:25]} Kb4 {[%emt 0:00:02]} 60. Kh4 {[%emt 0:00:19]} Rf6 {[%emt 0:01:27]} 61. g5 {[%emt 0:01:02][%cal Bg4g5,Bg5g6,Bg6g7][%mdl 32]} Rf1 {[%emt 0:01:18]} 62. h6 {[%emt 0:00:30] Hoping for g6.} c3 {[%emt 0:00:53]} 63. g6 {[%emt 0:00:21] White mates.} Kb3 {[%emt 0:00:55]} 64. g7 {[%emt 0:00:36]} Rh1+ {[%emt 0:00:32]} 65. Kg5 {[%emt 0:00:04]} Rg1+ {[%emt 0:00:06]} 66. Kf6 {[%emt 0:00:07]} c2 {[%emt 0:00:04]} 67. h7 {[%emt 0:00:16] Weighted Error Value: White=0.24 (precise) /Black=0.39} (67. g8=R $2 {too greedy.} Rxg8 68. Rxg8 c1=Q $19) 1-0

[Event "6th Tulsi Lal Memorial NTCC 2080"]
[Site "Lalitpur"]
[Date "2024.01.09"]
[Round "2.6"]
[White "Shrestha, Kamal"]
[Black "Shrestha, Bibek"]
[Result "1-0"]
[ECO "B38"]
[WhiteElo "1821"]
[BlackElo "1812"]
[Annotator "NA RC COMBH"]
[PlyCount "73"]
[EventDate "2024.01.03"]
[EventType "team-tourn"]
[EventCountry "NEP"]
[SourceTitle "playchess.com"]
[Source "ChessBase"]
[SourceQuality "1"]
[TimeControl "5400+30"]

1. e4 {[%emt 0:05:14]} c5 {[%emt 0:00:33]} 2. Nf3 {[%emt 0:00:22]} g6 {[%emt 0:00:13]} 3. c4 {[%emt 0:01:47]} Nc6 {[%emt 0:00:15]} 4. d4 {[%emt 0:01:27]} cxd4 {[%emt 0:01:06]} 5. Nxd4 {[%emt 0:00:24]} Bg7 {[%emt 0:00:34]} 6. Be3 {[%emt 0:00:15]} Nf6 {[%emt 0:01:19]} 7. Nc3 {[%emt 0:00:08]} O-O {[%emt 0:01:03]} 8. Be2 {[%emt 0:00:23]} d6 {[%emt 0:00:59]} 9. O-O {[%emt 0:00:22]} Bd7 {[%emt 0:02:23]} 10. Nb3 {[%emt 0:04:10]} a5 {[%emt 0:08:09]} 11. Nd2 {[%emt 0:03:23]} Ne5 {[%emt 0:10:50]} 12. h3 {[%emt 0:00:35]} Bc6 {[%emt 0:02:57]} 13. b3 {[%emt 0:07:00]} Ned7 {[%emt 0:02:55]} 14. Rc1 {[%emt 0:00:46]} Nc5 {[%emt 0:01:59]} 15. Qc2 {[%emt 0:03:53]} b6 {[%emt 0:05:24]} 16. Rfd1 {[%emt 0:02:54]} Qc7 {[%emt 0:03:28]} 17. Nd5 {[%emt 0:05:10]} Nxd5 {[%emt 0:05:42]} 18. cxd5 {[%emt 0:00:31]} Bd7 {[%emt 0:01:25]} 19. Nf3 Rfc8 {[%emt 0:10:01]} 20. Nd4 {[%emt 0:34:23]} Qb7 {[%emt 0:05:47]} 21. Bg4 {[%emt 0:05:17]} (21. Qb1 $5 {[%cal Ra2a3]}) 21... e6 {[%emt 0:10:52]} 22. Qb1 {[%emt 0:03:08]} exd5 {[%emt 0:05:08]} 23. exd5 {[%emt 0:00:36]} Bxg4 {[%emt 0:02:37]} 24. hxg4 {[%emt 0:00:02]} Bxd4 {[%emt 0:01:52]} 25. Bxd4 {[%emt 0:01:27]} Qd7 {[%emt 0:02:15]} (25... Qe7 $142) 26. Ba1 {[%emt 0:03:18]} Rf8 {[%emt 0:02:46]} 27. g5 {[%emt 0:01:47]} Qf5 {[%emt 0:02:49]} 28. Qb2 {[%emt 0:00:04]} f6 {[%emt 0:00:27]} 29. gxf6 {[%emt 0:00:02]} Kf7 {[%emt 0:00:14]} 30. Re1 {[%emt 0:02:47]} Ra7 {[%emt 0:00:51]} 31. Qd4 $18 {[%emt 0:01:21]} Nd3 {[%emt 0:06:00]} 32. Qxb6 {[%emt 0:07:59]} Rd7 {[%emt 0:00:27]} 33. Re7+ {[%emt 0:00:23]} Rxe7 {[%emt 0:01:54]} 34. fxe7 {[%emt 0:00:07]} Re8 {[%emt 0:01:09]} 35. Qd4 {[%emt 0:00:30]} Rxe7 {[%emt 0:00:42]} 36. Qg7+ {[%emt 0:00:02]} Ke8 {[%emt 0:00:20]} 37. Qg8+ {[%emt 0:00:06]} 1-0

[Event "6th Tulsi Lal Memorial NTCC 2080"]
[Site "Lalitpur"]
[Date "2024.01.09"]
[Round "2.7"]
[White "Belbase, Kushal"]
[Black "Mukarung, Arya"]
[Result "1/2-1/2"]
[ECO "A16"]
[WhiteElo "1520"]
[BlackElo "1447"]
[Annotator "NA RC COMBH"]
[PlyCount "81"]
[EventDate "2024.01.03"]
[EventType "team-tourn"]
[EventCountry "NEP"]
[SourceTitle "playchess.com"]
[Source "ChessBase"]
[SourceQuality "1"]
[TimeControl "5400+30"]

1. c4 {[%emt 0:06:30]} d6 {[%emt 0:01:58]} 2. Nc3 {[%emt 0:02:29]} Nf6 {[%emt 0:00:45]} 3. g3 {[%emt 0:00:35]} g6 {[%emt 0:03:07]} 4. Bg2 {[%emt 0:01:59]} Bg7 {[%emt 0:00:40]} 5. e4 {[%emt 0:01:28]} e5 {[%emt 0:07:59]} 6. h3 {[%emt 0:00:45]} Nc6 {[%emt 0:06:54]} 7. Nge2 {[%emt 0:01:13]} Be6 {[%emt 0:13:15]} 8. d3 {[%emt 0:01:36]} h6 {[%emt 0:00:15]} 9. O-O {[%emt 0:01:19]} Qd7 {[%emt 0:01:04]} 10. Kh2 {[%emt 0:00:11]} Nh5 {[%emt 0:05:01]} 11. g4 {[%emt 0:07:21]} Nf6 {[%emt 0:04:50]} 12. f4 {[%emt 0:01:47]} exf4 {[%emt 0:17:20]} 13. Nxf4 {[%emt 0:13:25]} O-O-O {[%emt 0:00:30]} 14. Be3 {[%emt 0:00:30]} Bxg4 {[%emt 0:00:30]} 15. Qa4 {[%emt 0:00:30]} a6 {[%emt 0:00:30]} 16. Nfd5 {[%emt 0:00:30]} Nxd5 {[%emt 0:00:30]} 17. cxd5 {[%emt 0:00:30]} Ne5 {[%emt 0:00:30]} 18. d4 {[%emt 0:00:30]} Qxa4 {[%emt 0:00:30]} 19. Nxa4 {[%emt 0:00:30]} Nc4 {[%emt 0:00:30]} 20. Rxf7 {[%emt 0:00:30]} Rd7 {[%emt 0:00:30]} 21. Rxd7 {[%emt 0:00:30]} Bxd7 {[%emt 0:00:30]} 22. Bg1 {[%emt 0:00:30]} Bg4 {[%emt 0:13:10]} 23. Be3 {[%emt 0:56:52]} Bd7 {[%emt 0:00:17]} 24. Bg1 {[%emt 0:00:00]} Bxa4 {[%emt 0:02:29]} 25. b3 {[%emt 0:00:00]} Bb5 {[%emt 0:00:08]} 26. a4 {[%emt 0:00:00]} Nd2 {[%emt 0:02:43]} 27. axb5 {[%emt 0:00:00]} Nxb3 {[%emt 0:00:36]} 28. Ra3 {[%emt 0:00:00]} Nxd4 {[%emt 0:17:29]} 29. bxa6 {[%emt 0:00:00]} bxa6 {[%emt 0:00:00]} 30. Rxa6 {[%emt 0:00:00]} Kb7 {[%emt 0:00:00]} 31. Ra4 {[%emt 0:00:00]} Ne2 {[%emt 0:00:00]} 32. Rb4+ {[%emt 0:00:00]} Kc8 {[%emt 0:00:00]} 33. Be3 {[%emt 0:00:00]} Rf8 {[%emt 0:00:00]} 34. h4 {[%emt 0:00:00]} Be5+ {[%emt 0:00:00]} 35. Kh1 {[%emt 0:00:00]} Ng3+ {[%emt 0:00:00]} 36. Kg1 {[%emt 0:00:00]} Ne2+ {[%emt 0:00:00]} 37. Kh1 {[%emt 0:00:00]} Ng3+ {[%emt 0:00:00]} 38. Kg1 {[%emt 0:00:00]} Ne2+ {[%emt 0:00:00]} 39. Kh1 {[%emt 0:00:00]} Ng3+ {[%emt 0:02:58]} 40. Kg1 {[%emt 0:00:00]} Ne2+ {[%emt 0:01:13]} 41. Kh1 {[%emt 0:00:00]} 1/2-1/2